Workbook

Sheet Sheet1
B1: Variable | C1: Value
B2: Length of the Room (m) | C2: 4
B3: Width of the Room (m) | C3: 5
B4: Height of the Room (ignoring the roof) (m) | C4: 5
B5: Height of the Roof (m) | C5: 0
B6: Distance Between the Floor and the Base of the Fire (m) | C6: 0
B7: Ambient Temperature of the Room | C7: 293
B8: Ambient Pressure of the Room (kg/m^3) | C8: 1.18
B9: Specific Heat Constant | C9: 1.004
B10: K | C10: 0.076
B11: Time Step (s) | C11: 2
B12: End Time (s) | C12: 6000
B13: Fraction of Heat Radiated from the Fire | C13: 0.35
B14: Lump Amount of Energy Lost | C14: 0.6
B15: Height of Subject (m) | C15: 1.75
B16: Concentration of Carbon Monoxide (ppm) | C16: 10000

Sheet Sheet2
B2: t | C2: Qdot | D2: mH | E2: dH | F2: eH | G2: z | H2: tH | I2: COHb% | J2: FICO
B3: 0 | C3: 0.1 | D3: 0 | E3: 0 | F3: 0 | G3: 5 | H3: 293 | I3: 0 | J3: 0 | L3: Notation | M3: Definition
B4: 2 | C4: 4.1 | D4: 0.4467535907 | E4: 0.01893599854 | F4: 131.4623973 | G4: 4.981064001 | H4: 293.0891781 | I4: 0.006418195994 | J4: 0.02139398665 | L4: t | M4: Time
B5: 4 | C5: 8.1 | D5: 1.977545648 | E5: 0.08403629628 | F5: 583.4185582 | G5: 4.915963704 | H5: 293.8461533 | I5: 0.01283639199 | J5: 0.04278797329 | L5: Qdot | M5: Total Rate of Energy Supplied by the Fire
B6: 6 | C6: 12.1 | D6: 3.856692973 | E6: 0.1641278764 | F6: 1139.451085 | G6: 4.835872124 | H6: 294.2706219 | I6: 0.01925458798 | J6: 0.06418195994 | L6: mH | M6: Mass of the Hot Layer
B7: 8 | C7: 16.1 | D7: 5.946812784 | E7: 0.2533894344 | F7: 1759.14581 | G7: 4.746610566 | H7: 294.6346766 | I7: 0.02567278397 | J7: 0.08557594658 | L7: dH | M7: Depth of the Hot Layer
B8: 10 | C8: 20.1 | D8: 8.175415587 | E8: 0.3487493818 | F8: 2421.178354 | G8: 4.651250618 | H8: 294.973656 | I8: 0.03209097997 | J8: 0.1069699332 | L8: eH | M8: Enthalpy in the Hot Layer
B9: 12 | C9: 24.1 | D9: 10.49529974 | E9: 0.4482076488 | F9: 3111.663315 | G9: 4.551792351 | H9: 295.3004037 | I9: 0.03850917596 | J9: 0.1283639199 | L9: z | M9: Height of the Fire
B10: 14 | C10: 28.1 | D10: 12.87265706 | E10: 0.5503316854 | F10: 3820.655272 | G10: 4.449668315 | H10: 295.6214495 | I10: 0.04492737195 | J10: 0.1497579065 | L10: tH | M10: Temperature of the Hot Layer
B11: 16 | C11: 32.1 | D11: 15.28200515 | E11: 0.6540417292 | F11: 4540.65802 | G11: 4.345958271 | H11: 295.9407292 | I11: 0.05134556795 | J11: 0.1711518932 | L11: COHb % | M11: Concentration of CO in the Blood
B12: 18 | C12: 36.1 | D12: 17.70356743 | E12: 0.7584997888 | F12: 5265.853837 | G12: 4.241500211 | H12: 296.2608729 | I12: 0.05776376394 | J12: 0.1925458798 | L12: FICO | M12: Fraction of Incapacitating Dose
B13: 20 | C13: 40.1 | D13: 20.1217343 | E13: 0.8630444412 | F13: 5991.650821 | G13: 4.136955559 | H13: 296.5837643 | I13: 0.06418195994 | J13: 0.2139398665 | M13: The Subject is Within the Hot Layer
B14: 22 | C14: 44.1 | D14: 22.52407313 | E14: 0.96714888 | F14: 6714.39164 | G14: 4.03285112 | H14: 296.9108224 | I14: 0.07060015593 | J14: 0.2353338531 | M14: The subject has died to to this value
B15: 24 | C15: 48.1 | D15: 24.90064648 | E15: 1.070392027 | F15: 7431.152976 | G15: 3.929607973 | H15: 297.2431577 | I15: 0.07701835192 | J15: 0.2567278397
B16: 26 | C16: 52.1 | D16: 27.24351786 | E16: 1.17243759 | F16: 8139.600136 | G16: 3.82756241 | H16: 297.5816666 | I16: 0.08343654792 | J16: 0.2781218264
B17: 28 | C17: 56.1 | D17: 29.54637901 | E17: 1.273018271 | F17: 8837.877407 | G17: 3.726981729 | H17: 297.9270907 | I17: 0.08985474391 | J17: 0.299515813
B18: 30 | C18: 60.1 | D18: 31.8042603 | E18: 1.371923491 | F18: 9524.522861 | G18: 3.628076509 | H18: 298.2800564 | I18: 0.0962729399 | J18: 0.3209097997
B19: 32 | C19: 64.1 | D19: 34.01330039 | E19: 1.468989634 | F19: 10198.4006 | G19: 3.531010366 | H19: 298.6411024 | I19: 0.1026911359 | J19: 0.3423037863
B20: 34 | C20: 68.1 | D20: 36.17055981 | E20: 1.564092148 | F20: 10858.64592 | G20: 3.435907852 | H20: 299.0106993 | I20: 0.1091093319 | J20: 0.363697773
B21: 36 | C21: 72.1 | D21: 38.27386808 | E21: 1.657139061 | F21: 11504.62032 | G21: 3.342860939 | H21: 299.3892636 | I21: 0.1155275279 | J21: 0.3850917596
B22: 38 | C22: 76.1 | D22: 40.32169689 | E22: 1.748065616 | F22: 12135.87422 | G22: 3.251934384 | H22: 299.7771685 | I22: 0.1219457239 | J22: 0.4064857463
B23: 40 | C23: 80.1 | D23: 42.31305433 | E23: 1.836829782 | F23: 12752.11582 | G23: 3.163170218 | H23: 300.1747517 | I23: 0.1283639199 | J23: 0.4278797329
B24: 42 | C24: 84.1 | D24: 44.24739585 | E24: 1.923408485 | F24: 13353.18493 | G24: 3.076591515 | H24: 300.5823221 | I24: 0.1347821159 | J24: 0.4492737195
B25: 44 | C25: 88.1 | D25: 46.12454929 | E25: 2.00779443 | F25: 13939.03091 | G25: 2.99220557 | H25: 301.0001645 | I25: 0.1412003119 | J25: 0.4706677062
B26: 46 | C26: 92.1 | D26: 47.94465129 | E26: 2.089993407 | F26: 14509.69396 | G26: 2.910006593 | H26: 301.4285436 | I26: 0.1476185079 | J26: 0.4920616928
B27: 48 | C27: 96.1 | D27: 49.7080934 | E27: 2.170022008 | F27: 15065.28925 | G27: 2.829977992 | H27: 301.8677071 | I27: 0.1540367038 | J27: 0.5134556795
B28: 50 | C28: 100.1 | D28: 51.41547634 | E28: 2.247905685 | F28: 15605.99351 | G28: 2.752094315 | H28: 302.3178883 | I28: 0.1604548998 | J28: 0.5348496661
B29: 52 | C29: 104.1 | D29: 53.067571 | E29: 2.323677105 | F29: 16132.0335 | G29: 2.676322895 | H29: 302.7793084 | I29: 0.1668730958 | J29: 0.5562436528
B30: 54 | C30: 108.1 | D30: 54.66528535 | E30: 2.39737474 | F30: 16643.67632 | G30: 2.60262526 | H30: 303.2521782 | I30: 0.1732912918 | J30: 0.5776376394
B31: 56 | C31: 112.1 | D31: 56.20963634 | E31: 2.469041682 | F31: 17141.22114 | G31: 2.530958318 | H31: 303.7366995 | I31: 0.1797094878 | J31: 0.5990316261
B32: 58 | C32: 116.1 | D32: 57.70172594 | E32: 2.538724624 | F32: 17624.99212 | G32: 2.461275376 | H32: 304.2330666 | I32: 0.1861276838 | J32: 0.6204256127
B33: 60 | C33: 120.1 | D33: 59.1427209 | E33: 2.606473005 | F33: 18095.33249 | G33: 2.393526995 | H33: 304.7414671 | I33: 0.1925458798 | J33: 0.6418195994
B34: 62 | C34: 124.1 | D34: 60.53383557 | E34: 2.67233828 | F34: 18552.59948 | G34: 2.32766172 | H34: 305.262083 | I34: 0.1989640758 | J34: 0.663213586
B35: 64 | C35: 128.1 | D35: 61.87631738 | E35: 2.736373307 | F35: 18997.16004 | G35: 2.263626693 | H35: 305.7950916 | I35: 0.2053822718 | J35: 0.6846075726
B36: 66 | C36: 132.1 | D36: 63.17143467 | E36: 2.798631828 | F36: 19429.38728 | G36: 2.201368172 | H36: 306.3406659 | I36: 0.2118004678 | J36: 0.7060015593
B37: 68 | C37: 136.1 | D37: 64.42046635 | E37: 2.859168035 | F37: 19849.65743 | G37: 2.140831965 | H37: 306.8989755 | I37: 0.2182186638 | J37: 0.7273955459
B38: 70 | C38: 140.1 | D38: 65.62469343 | E38: 2.918036208 | F38: 20258.34731 | G38: 2.081963792 | H38: 307.4701871 | I38: 0.2246368598 | J38: 0.7487895326
B39: 72 | C39: 144.1 | D39: 66.7853918 | E39: 2.97529041 | F39: 20655.83228 | G39: 2.02470959 | H39: 308.0544647 | I39: 0.2310550558 | J39: 0.7701835192
B40: 74 | C40: 148.1 | D40: 67.90382643 | E40: 3.030984241 | F40: 21042.48443 | G40: 1.969015759 | H40: 308.6519705 | I40: 0.2374732518 | J40: 0.7915775059
B41: 76 | C41: 152.1 | D41: 68.98124648 | E41: 3.085170632 | F41: 21418.67124 | G41: 1.914829368 | H41: 309.2628646 | I41: 0.2438914478 | J41: 0.8129714925
B42: 78 | C42: 156.1 | D42: 70.0188814 | E42: 3.137901679 | F42: 21784.75438 | G42: 1.862098321 | H42: 309.887306 | I42: 0.2503096437 | J42: 0.8343654792
B43: 80 | C43: 160.1 | D43: 71.01793785 | E43: 3.18922851 | F43: 22141.08881 | G43: 1.81077149 | H43: 310.5254527 | I43: 0.2567278397 | J43: 0.8557594658
B44: 82 | C44: 164.1 | D44: 71.97959715 | E44: 3.239201183 | F44: 22488.02205 | G44: 1.760798817 | H44: 311.1774618 | I44: 0.2631460357 | J44: 0.8771534525
B45: 84 | C45: 168.1 | D45: 72.90501343 | E45: 3.2878686 | F45: 22825.89361 | G45: 1.7121314 | H45: 311.8434896 | I45: 0.2695642317 | J45: 0.8985474391
B46: 86 | C46: 172.1 | D46: 73.79531219 | E46: 3.335278452 | F46: 23155.03458 | G46: 1.664721548 | H46: 312.5236924 | I46: 0.2759824277 | J46: 0.9199414257
B47: 88 | C47: 176.1 | D47: 74.6515893 | E47: 3.381477176 | F47: 23475.76733 | G47: 1.618522824 | H47: 313.2182261 | I47: 0.2824006237 | J47: 0.9413354124
B48: 90 | C48: 180.1 | D48: 75.47491033 | E48: 3.426509921 | F48: 23788.40532 | G48: 1.573490079 | H48: 313.9272467 | I48: 0.2888188197 | J48: 0.962729399
B49: 92 | C49: 184.1 | D49: 76.26631018 | E49: 3.470420539 | F49: 24093.253 | G49: 1.529579461 | H49: 314.6509106 | I49: 0.2952370157 | J49: 0.9841233857
B50: 94 | C50: 188.1 | D50: 77.02679295 | E50: 3.513251578 | F50: 24390.60574 | G50: 1.486748422 | H50: 315.389374 | I50: 0.3016552117 | J50: 1
B51: 96 | C51: 192.1 | D51: 77.75733203 | E51: 3.555044282 | F51: 24680.74988 | G51: 1.444955718 | H51: 316.1427939 | I51: 0.3080734077 | J51: 1
B52: 98 | C52: 196.1 | D52: 78.45887035 | E52: 3.595838606 | F52: 24963.96281 | G52: 1.404161394 | H52: 316.9113279 | I52: 0.3144916037 | J52: 1
B53: 100 | C53: 200.1 | D53: 79.13232076 | E53: 3.63567323 | F53: 25240.51306 | G53: 1.36432677 | H53: 317.695134 | I53: 0.3209097997 | J53: 1
B54: 102 | C54: 204.1 | D54: 79.77856658 | E54: 3.674585583 | F54: 25510.66049 | G54: 1.325414417 | H54: 318.4943711 | I54: 0.3273279957 | J54: 1
B55: 104 | C55: 208.1 | D55: 80.39846214 | E55: 3.712611866 | F55: 25774.65641 | G55: 1.287388134 | H55: 319.3091988 | I55: 0.3337461917 | J55: 1
B56: 106 | C56: 212.1 | D56: 80.99283355 | E56: 3.749787083 | F56: 26032.74383 | G56: 1.250212917 | H56: 320.1397776 | I56: 0.3401643877 | J56: 1
B57: 108 | C57: 216.1 | D57: 81.56247935 | E57: 3.78614507 | F57: 26285.15768 | G57: 1.21385493 | H57: 320.9862689 | I57: 0.3465825837 | J57: 1
B58: 110 | C58: 220.1 | D58: 82.10817138 | E58: 3.821718533 | F58: 26532.12499 | G58: 1.178281467 | H58: 321.8488351 | I58: 0.3530007796 | J58: 1
B59: 112 | C59: 224.1 | D59: 82.63065555 | E59: 3.856539078 | F59: 26773.8652 | G59: 1.143460922 | H59: 322.7276395 | I59: 0.3594189756 | J59: 1
B60: 114 | C60: 228.1 | D60: 83.13065272 | E60: 3.89063725 | F60: 27010.59037 | G60: 1.10936275 | H60: 323.6228464 | I60: 0.3658371716 | J60: 1
B61: 116 | C61: 232.1 | D61: 83.60885954 | E61: 3.924042568 | F61: 27242.50543 | G61: 1.075957432 | H61: 324.5346211 | I61: 0.3722553676 | J61: 1
B62: 118 | C62: 236.1 | D62: 84.06594939 | E62: 3.956783565 | F62: 27469.80846 | G62: 1.043216435 | H62: 325.4631298 | I62: 0.3786735636 | J62: 1
B63: 120 | C63: 240.1 | D63: 84.50257319 | E63: 3.988887822 | F63: 27692.69096 | G63: 1.011112178 | H63: 326.4085397 | I63: 0.3850917596 | J63: 1
B64: 122 | C64: 244.1 | D64: 84.91936035 | E64: 4.02038201 | F64: 27911.33807 | G64: 0.9796179899 | H64: 327.3710189 | I64: 0.3915099556 | J64: 1
B65: 124 | C65: 248.1 | D65: 85.31691963 | E65: 4.051291923 | F65: 28125.92888 | G65: 0.9487080772 | H65: 328.3507364 | I65: 0.3979281516 | J65: 1
B66: 126 | C66: 252.1 | D66: 85.69584001 | E66: 4.081642517 | F66: 28336.63665 | G66: 0.9183574825 | H66: 329.3478619 | I66: 0.4043463476 | J66: 1
B67: 128 | C67: 256.1 | D67: 86.05669158 | E67: 4.111457951 | F67: 28543.62908 | G67: 0.8885420491 | H67: 330.3625658 | I67: 0.4107645436 | J67: 1
B68: 130 | C68: 260.1 | D68: 86.40002643 | E68: 4.140761616 | F68: 28747.06857 | G68: 0.8592383843 | H68: 331.3950192 | I68: 0.4171827396 | J68: 1
B69: 132 | C69: 264.1 | D69: 86.72637943 | E69: 4.169576177 | F69: 28947.11249 | G69: 0.8304238231 | H69: 332.4453936 | I69: 0.4236009356 | J69: 1
B70: 134 | C70: 268.1 | D70: 87.03626915 | E70: 4.197923608 | F70: 29143.91337 | G70: 0.8020763925 | H70: 333.5138609 | I70: 0.4300191316 | J70: 1
B71: 136 | C71: 272.1 | D71: 87.33019867 | E71: 4.225825224 | F71: 29337.6192 | G71: 0.7741747759 | H71: 334.600593 | I71: 0.4364373276 | J71: 1
B72: 138 | C72: 276.1 | D72: 87.60865639 | E72: 4.253301722 | F72: 29528.37367 | G72: 0.7466982784 | H72: 335.7057619 | I72: 0.4428555236 | J72: 1
B73: 140 | C73: 280.1 | D73: 87.87211684 | E73: 4.280373208 | F73: 29716.31635 | G73: 0.7196267923 | H73: 336.8295396 | I73: 0.4492737195 | J73: 1
B74: 142 | C74: 284.1 | D74: 88.12104152 | E74: 4.307059237 | F74: 29901.58303 | G74: 0.6929407629 | H74: 337.9720972 | I74: 0.4556919155 | J74: 1
B75: 144 | C75: 288.1 | D75: 88.35587966 | E75: 4.333378845 | F75: 30084.30583 | G75: 0.6666211547 | H75: 339.1336055 | I75: 0.4621101115 | J75: 1
B76: 146 | C76: 292.1 | D76: 88.57706905 | E76: 4.359350582 | F76: 30264.61356 | G76: 0.6406494177 | H76: 340.314234 | I76: 0.4685283075 | J76: 1
B77: 148 | C77: 296.1 | D77: 88.78503678 | E77: 4.384992546 | F77: 30442.63184 | G77: 0.6150074545 | H77: 341.514151 | I77: 0.4749465035 | J77: 1
B78: 150 | C78: 300.1 | D78: 88.98020008 | E78: 4.410322414 | F78: 30618.48342 | G78: 0.5896775861 | H78: 342.7335227 | I78: 0.4813646995 | J78: 1
B79: 152 | C79: 304.1 | D79: 89.16296706 | E79: 4.435357481 | F79: 30792.28835 | G79: 0.5646425195 | H79: 343.9725137 | I79: 0.4877828955 | J79: 1
B80: 154 | C80: 308.1 | D80: 89.33373755 | E80: 4.460114687 | F80: 30964.16424 | G80: 0.539885313 | H80: 345.2312853 | I80: 0.4942010915 | J80: 1
B81: 156 | C81: 312.1 | D81: 89.49290385 | E81: 4.484610657 | F81: 31134.22651 | G81: 0.5153893433 | H81: 346.5099961 | I81: 0.5006192875 | J81: 1
B82: 158 | C82: 316.1 | D82: 89.6408516 | E82: 4.50886173 | F82: 31302.5886 | G82: 0.4911382703 | H82: 347.8088007 | I82: 0.5070374835 | J82: 1
B83: 160 | C83: 320.1 | D83: 89.77796056 | E83: 4.532883998 | F83: 31469.36221 | G83: 0.4671160021 | H83: 349.1278491 | I83: 0.5134556795 | J83: 1
B84: 162 | C84: 324.1 | D84: 89.9046055 | E84: 4.556693341 | F84: 31634.65761 | G84: 0.4433066587 | H84: 350.4672863 | I84: 0.5198738755 | J84: 1
B85: 164 | C85: 328.1 | D85: 90.02115707 | E85: 4.580305466 | F85: 31798.58382 | G85: 0.4196945343 | H85: 351.8272511 | I85: 0.5262920715 | J85: 1
B86: 166 | C86: 332.1 | D86: 90.12798275 | E86: 4.603735941 | F86: 31961.24894 | G86: 0.3962640585 | H86: 353.2078753 | I86: 0.5327102675 | J86: 1
B87: 168 | C87: 336.1 | D87: 90.22544778 | E87: 4.627000246 | F87: 32122.76042 | G87: 0.3729997544 | H87: 354.6092825 | I87: 0.5391284635 | J87: 1
B88: 170 | C88: 340.1 | D88: 90.31391623 | E88: 4.650113805 | F88: 32283.22537 | G88: 0.349886195 | H88: 356.0315872 | I88: 0.5455466595 | J88: 1
B89: 172 | C89: 344.1 | D89: 90.39375214 | E89: 4.673092044 | F89: 32442.75086 | G89: 0.3269079557 | H89: 357.4748929 | I89: 0.5519648554 | J89: 1
B90: 174 | C90: 348.1 | D90: 90.46532067 | E90: 4.695950437 | F90: 32601.44431 | G90: 0.3040495633 | H90: 358.9392912 | I90: 0.5583830514 | J90: 1
B91: 176 | C91: 352.1 | D91: 90.52898947 | E91: 4.718704561 | F91: 32759.41389 | G91: 0.281295439 | H91: 360.4248594 | I91: 0.5648012474 | J91: 1
B92: 178 | C92: 356.1 | D92: 90.58513018 | E92: 4.741370164 | F92: 32916.76892 | G92: 0.258629836 | H92: 361.9316586 | I92: 0.5712194434 | J92: 1
B93: 180 | C93: 360.1 | D93: 90.63412006 | E93: 4.763963232 | F93: 33073.62037 | G93: 0.2360367681 | H93: 363.4597316 | I93: 0.5776376394 | J93: 1
B94: 182 | C94: 364.1 | D94: 90.67634398 | E94: 4.786500072 | F94: 33230.08146 | G94: 0.2134999279 | H94: 365.0090999 | I94: 0.5840558354 | J94: 1
B95: 184 | C95: 368.1 | D95: 90.71219662 | E95: 4.808997409 | F95: 33386.2683 | G95: 0.191002591 | H95: 366.5797602 | I95: 0.5904740314 | J95: 1
B96: 186 | C96: 372.1 | D96: 90.74208521 | E96: 4.831472498 | F96: 33542.30069 | G96: 0.1685275023 | H96: 368.1716807 | I96: 0.5968922274 | J96: 1
B97: 188 | C97: 376.1 | D97: 90.7664328 | E97: 4.853943264 | F97: 33698.30307 | G97: 0.1460567361 | H97: 369.7847965 | I97: 0.6033104234 | J97: 1
B98: 190 | C98: 380.1 | D98: 90.7856824 | E98: 4.87642848 | F98: 33854.40576 | G98: 0.1235715201 | H98: 371.4190031 | I98: 0.6097286194 | J98: 1
B99: 192 | C99: 384.1 | D99: 90.80030242 | E99: 4.898947993 | F99: 34010.74656 | G99: 0.101052007 | H99: 373.0741493 | I99: 0.6161468154 | J99: 1
B100: 194 | C100: 388.1 | D100: 90.81079401 | E100: 4.921523038 | F100: 34167.47289 | G100: 0.07847696182 | H100: 374.750027 | I100: 0.6225650114 | J100: 1
B101: 196 | C101: 392.1 | D101: 90.81770175 | E101: 4.944176692 | F101: 34324.74496 | G101: 0.05582330836 | H101: 376.4463571 | I101: 0.6289832074 | J101: 1
B102: 198 | C102: 396.1 | D102: 90.8216307 | E102: 4.966934591 | F102: 34482.74075 | G102: 0.03306540919 | H102: 378.1627685 | I102: 0.6354014034 | J102: 1
B103: 200 | C103: 400.1 | D103: 90.82327763 | E103: 4.98982626 | F103: 34641.66523 | G103: 0.01017373965 | H103: 379.8987608 | I103: 0.6418195994 | J103: 1
B104: 202 | C104: 404.1 | D104: 90.82350936 | E104: 5.012888429 | F104: 34801.77339 | G104: 0 | H104: 381.6536176 | I104: 0.6482377954 | J104: 1
B105: 204 | C105: 408.1 | D105: 90.82350936 | E105: 5.036171245 | F105: 34963.41339 | G105: 0 | H105: 383.4262425 | I105: 0.6546559913 | J105: 1
B106: 206 | C106: 412.1 | D106: 90.82350936 | E106: 5.059684527 | F106: 35126.65339 | G106: 0 | H106: 385.2164139 | I106: 0.6610741873 | J106: 1
B107: 208 | C107: 416.1 | D107: 90.82350936 | E107: 5.083428275 | F107: 35291.49339 | G107: 0 | H107: 387.0241316 | I107: 0.6674923833 | J107: 1
B108: 210 | C108: 420.1 | D108: 90.82350936 | E108: 5.107402489 | F108: 35457.93339 | G108: 0 | H108: 388.8493957 | I108: 0.6739105793 | J108: 1
B109: 212 | C109: 424.1 | D109: 90.82350936 | E109: 5.131607168 | F109: 35625.97339 | G109: 0 | H109: 390.6922062 | I109: 0.6803287753 | J109: 1
B110: 214 | C110: 428.1 | D110: 90.82350936 | E110: 5.156042314 | F110: 35795.61339 | G110: 0 | H110: 392.5525631 | I110: 0.6867469713 | J110: 1
B111: 216 | C111: 432.1 | D111: 90.82350936 | E111: 5.180707925 | F111: 35966.85339 | G111: 0 | H111: 394.4304664 | I111: 0.6931651673 | J111: 1
B112: 218 | C112: 436.1 | D112: 90.82350936 | E112: 5.205604002 | F112: 36139.69339 | G112: 0 | H112: 396.3259161 | I112: 0.6995833633 | J112: 1
B113: 220 | C113: 440.1 | D113: 90.82350936 | E113: 5.230730545 | F113: 36314.13339 | G113: 0 | H113: 398.2389122 | I113: 0.7060015593 | J113: 1
B114: 222 | C114: 444.1 | D114: 90.82350936 | E114: 5.256087554 | F114: 36490.17339 | G114: 0 | H114: 400.1694547 | I114: 0.7124197553 | J114: 1
B115: 224 | C115: 448.1 | D115: 90.82350936 | E115: 5.281675029 | F115: 36667.81339 | G115: 0 | H115: 402.1175437 | I115: 0.7188379513 | J115: 1
B116: 226 | C116: 452.1 | D116: 90.82350936 | E116: 5.307492969 | F116: 36847.05339 | G116: 0 | H116: 404.083179 | I116: 0.7252561473 | J116: 1
B117: 228 | C117: 456.1 | D117: 90.82350936 | E117: 5.333541376 | F117: 37027.89339 | G117: 0 | H117: 406.0663607 | I117: 0.7316743433 | J117: 1
B118: 230 | C118: 460.1 | D118: 90.82350936 | E118: 5.359820249 | F118: 37210.33339 | G118: 0 | H118: 408.0670888 | I118: 0.7380925393 | J118: 1
B119: 232 | C119: 464.1 | D119: 90.82350936 | E119: 5.386329587 | F119: 37394.37339 | G119: 0 | H119: 410.0853633 | I119: 0.7445107353 | J119: 1
B120: 234 | C120: 468.1 | D120: 90.82350936 | E120: 5.413069391 | F120: 37580.01339 | G120: 0 | H120: 412.1211842 | I120: 0.7509289312 | J120: 1
B121: 236 | C121: 472.1 | D121: 90.82350936 | E121: 5.440039661 | F121: 37767.25339 | G121: 0 | H121: 414.1745515 | I121: 0.7573471272 | J121: 1
B122: 238 | C122: 476.1 | D122: 90.82350936 | E122: 5.467240397 | F122: 37956.09339 | G122: 0 | H122: 416.2454651 | I122: 0.7637653232 | J122: 1
B123: 240 | C123: 480.1 | D123: 90.82350936 | E123: 5.494671599 | F123: 38146.53339 | G123: 0 | H123: 418.3339252 | I123: 0.7701835192 | J123: 1
B124: 242 | C124: 484.1 | D124: 90.82350936 | E124: 5.522333267 | F124: 38338.57339 | G124: 0 | H124: 420.4399317 | I124: 0.7766017152 | J124: 1
B125: 244 | C125: 488.1 | D125: 90.82350936 | E125: 5.550225401 | F125: 38532.21339 | G125: 0 | H125: 422.5634846 | I125: 0.7830199112 | J125: 1
B126: 246 | C126: 492.1 | D126: 90.82350936 | E126: 5.578348 | F126: 38727.45339 | G126: 0 | H126: 424.7045839 | I126: 0.7894381072 | J126: 1
B127: 248 | C127: 496.1 | D127: 90.82350936 | E127: 5.606701066 | F127: 38924.29339 | G127: 0 | H127: 426.8632296 | I127: 0.7958563032 | J127: 1
B128: 250 | C128: 500.1 | D128: 90.82350936 | E128: 5.635284597 | F128: 39122.73339 | G128: 0 | H128: 429.0394217 | I128: 0.8022744992 | J128: 1
B129: 252 | C129: 504.1 | D129: 90.82350936 | E129: 5.664098594 | F129: 39322.77339 | G129: 0 | H129: 431.2331602 | I129: 0.8086926952 | J129: 1
B130: 254 | C130: 508.1 | D130: 90.82350936 | E130: 5.693143057 | F130: 39524.41339 | G130: 0 | H130: 433.4444451 | I130: 0.8151108912 | J130: 1
B131: 256 | C131: 512.1 | D131: 90.82350936 | E131: 5.722417986 | F131: 39727.65339 | G131: 0 | H131: 435.6732763 | I131: 0.8215290872 | J131: 1
B132: 258 | C132: 516.1 | D132: 90.82350936 | E132: 5.751923381 | F132: 39932.49339 | G132: 0 | H132: 437.919654 | I132: 0.8279472832 | J132: 1
B133: 260 | C133: 520.1 | D133: 90.82350936 | E133: 5.781659242 | F133: 40138.93339 | G133: 0 | H133: 440.1835781 | I133: 0.8343654792 | J133: 1
B134: 262 | C134: 524.1 | D134: 90.82350936 | E134: 5.811625568 | F134: 40346.97339 | G134: 0 | H134: 442.4650486 | I134: 0.8407836752 | J134: 1
B135: 264 | C135: 528.1 | D135: 90.82350936 | E135: 5.841822361 | F135: 40556.61339 | G135: 0 | H135: 444.7640655 | I135: 0.8472018712 | J135: 1
B136: 266 | C136: 532.1 | D136: 90.82350936 | E136: 5.872249619 | F136: 40767.85339 | G136: 0 | H136: 447.0806287 | I136: 0.8536200671 | J136: 1
B137: 268 | C137: 536.1 | D137: 90.82350936 | E137: 5.902907344 | F137: 40980.69339 | G137: 0 | H137: 449.4147384 | I137: 0.8600382631 | J137: 1
B138: 270 | C138: 540.1 | D138: 90.82350936 | E138: 5.933795534 | F138: 41195.13339 | G138: 0 | H138: 451.7663945 | I138: 0.8664564591 | J138: 1
B139: 272 | C139: 544.1 | D139: 90.82350936 | E139: 5.96491419 | F139: 41411.17339 | G139: 0 | H139: 454.135597 | I139: 0.8728746551 | J139: 1
B140: 274 | C140: 548.1 | D140: 90.82350936 | E140: 5.996263312 | F140: 41628.81339 | G140: 0 | H140: 456.5223458 | I140: 0.8792928511 | J140: 1
B141: 276 | C141: 552.1 | D141: 90.82350936 | E141: 6.0278429 | F141: 41848.05339 | G141: 0 | H141: 458.9266411 | I141: 0.8857110471 | J141: 1
B142: 278 | C142: 556.1 | D142: 90.82350936 | E142: 6.059652953 | F142: 42068.89339 | G142: 0 | H142: 461.3484828 | I142: 0.8921292431 | J142: 1
B143: 280 | C143: 560.1 | D143: 90.82350936 | E143: 6.091693473 | F143: 42291.33339 | G143: 0 | H143: 463.7878708 | I143: 0.8985474391 | J143: 1
B144: 282 | C144: 564.1 | D144: 90.82350936 | E144: 6.123964458 | F144: 42515.37339 | G144: 0 | H144: 466.2448053 | I144: 0.9049656351 | J144: 1
B145: 284 | C145: 568.1 | D145: 90.82350936 | E145: 6.15646591 | F145: 42741.01339 | G145: 0 | H145: 468.7192862 | I145: 0.9113838311 | J145: 1
B146: 286 | C146: 572.1 | D146: 90.82350936 | E146: 6.189197827 | F146: 42968.25339 | G146: 0 | H146: 471.2113134 | I146: 0.9178020271 | J146: 1
B147: 288 | C147: 576.1 | D147: 90.82350936 | E147: 6.22216021 | F147: 43197.09339 | G147: 0 | H147: 473.7208871 | I147: 0.9242202231 | J147: 1
B148: 290 | C148: 580.1 | D148: 90.82350936 | E148: 6.255353059 | F148: 43427.53339 | G148: 0 | H148: 476.2480071 | I148: 0.9306384191 | J148: 1
B149: 292 | C149: 584.1 | D149: 90.82350936 | E149: 6.288776374 | F149: 43659.57339 | G149: 0 | H149: 478.7926736 | I149: 0.9370566151 | J149: 1
B150: 294 | C150: 588.1 | D150: 90.82350936 | E150: 6.322430155 | F150: 43893.21339 | G150: 0 | H150: 481.3548865 | I150: 0.9434748111 | J150: 1
B151: 296 | C151: 592.1 | D151: 90.82350936 | E151: 6.356314402 | F151: 44128.45339 | G151: 0 | H151: 483.9346457 | I151: 0.949893007 | J151: 1
B152: 298 | C152: 596.1 | D152: 90.82350936 | E152: 6.390429114 | F152: 44365.29339 | G152: 0 | H152: 486.5319514 | I152: 0.956311203 | J152: 1
B153: 300 | C153: 600.1 | D153: 90.82350936 | E153: 6.424774293 | F153: 44603.73339 | G153: 0 | H153: 489.1468034 | I153: 0.962729399 | J153: 1
B154: 302 | C154: 604.1 | D154: 90.82350936 | E154: 6.459349937 | F154: 44843.77339 | G154: 0 | H154: 491.7792019 | I154: 0.969147595 | J154: 1
B155: 304 | C155: 608.1 | D155: 90.82350936 | E155: 6.494156047 | F155: 45085.41339 | G155: 0 | H155: 494.4291467 | I155: 0.975565791 | J155: 1
B156: 306 | C156: 612.1 | D156: 90.82350936 | E156: 6.529192623 | F156: 45328.65339 | G156: 0 | H156: 497.096638 | I156: 0.981983987 | J156: 1
B157: 308 | C157: 616.1 | D157: 90.82350936 | E157: 6.564459665 | F157: 45573.49339 | G157: 0 | H157: 499.7816756 | I157: 0.988402183 | J157: 1
B158: 310 | C158: 620.1 | D158: 90.82350936 | E158: 6.599957173 | F158: 45819.93339 | G158: 0 | H158: 502.4842597 | I158: 0.994820379 | J158: 1
B159: 312 | C159: 624.1 | D159: 90.82350936 | E159: 6.635685147 | F159: 46067.97339 | G159: 0 | H159: 505.2043901 | I159: 1 | J159: 1
B160: 314 | C160: 628.1 | D160: 90.82350936 | E160: 6.671643586 | F160: 46317.61339 | G160: 0 | H160: 507.9420669 | I160: 1 | J160: 1
B161: 316 | C161: 632.1 | D161: 90.82350936 | E161: 6.707832492 | F161: 46568.85339 | G161: 0 | H161: 510.6972902 | I161: 1 | J161: 1
B162: 318 | C162: 636.1 | D162: 90.82350936 | E162: 6.744251863 | F162: 46821.69339 | G162: 0 | H162: 513.4700598 | I162: 1 | J162: 1
B163: 320 | C163: 640.1 | D163: 90.82350936 | E163: 6.780901701 | F163: 47076.13339 | G163: 0 | H163: 516.2603759 | I163: 1 | J163: 1
B164: 322 | C164: 644.1 | D164: 90.82350936 | E164: 6.817782004 | F164: 47332.17339 | G164: 0 | H164: 519.0682383 | I164: 1 | J164: 1
B165: 324 | C165: 648.1 | D165: 90.82350936 | E165: 6.854892773 | F165: 47589.81339 | G165: 0 | H165: 521.8936471 | I165: 1 | J165: 1
B166: 326 | C166: 652.1 | D166: 90.82350936 | E166: 6.892234008 | F166: 47849.05339 | G166: 0 | H166: 524.7366024 | I166: 1 | J166: 1
B167: 328 | C167: 656.1 | D167: 90.82350936 | E167: 6.929805708 | F167: 48109.89339 | G167: 0 | H167: 527.597104 | I167: 1 | J167: 1
B168: 330 | C168: 660.1 | D168: 90.82350936 | E168: 6.967607875 | F168: 48372.33339 | G168: 0 | H168: 530.475152 | I168: 1 | J168: 1
B169: 332 | C169: 664.1 | D169: 90.82350936 | E169: 7.005640508 | F169: 48636.37339 | G169: 0 | H169: 533.3707465 | I169: 1 | J169: 1
B170: 334 | C170: 668.1 | D170: 90.82350936 | E170: 7.043903606 | F170: 48902.01339 | G170: 0 | H170: 536.2838873 | I170: 1 | J170: 1
B171: 336 | C171: 672.1 | D171: 90.82350936 | E171: 7.082397171 | F171: 49169.25339 | G171: 0 | H171: 539.2145745 | I171: 1 | J171: 1
B172: 338 | C172: 676.1 | D172: 90.82350936 | E172: 7.121121201 | F172: 49438.09339 | G172: 0 | H172: 542.1628081 | I172: 1 | J172: 1
B173: 340 | C173: 680.1 | D173: 90.82350936 | E173: 7.160075697 | F173: 49708.53339 | G173: 0 | H173: 545.1285882 | I173: 1 | J173: 1
B174: 342 | C174: 684.1 | D174: 90.82350936 | E174: 7.199260659 | F174: 49980.57339 | G174: 0 | H174: 548.1119146 | I174: 1 | J174: 1
B175: 344 | C175: 688.1 | D175: 90.82350936 | E175: 7.238676087 | F175: 50254.21339 | G175: 0 | H175: 551.1127874 | I175: 1 | J175: 1
B176: 346 | C176: 692.1 | D176: 90.82350936 | E176: 7.278321981 | F176: 50529.45339 | G176: 0 | H176: 554.1312066 | I176: 1 | J176: 1
B177: 348 | C177: 696.1 | D177: 90.82350936 | E177: 7.31819834 | F177: 50806.29339 | G177: 0 | H177: 557.1671723 | I177: 1 | J177: 1
B178: 350 | C178: 700.1 | D178: 90.82350936 | E178: 7.358305166 | F178: 51084.73339 | G178: 0 | H178: 560.2206843 | I178: 1 | J178: 1
B179: 352 | C179: 704.1 | D179: 90.82350936 | E179: 7.398642457 | F179: 51364.77339 | G179: 0 | H179: 563.2917427 | I179: 1 | J179: 1
B180: 354 | C180: 708.1 | D180: 90.82350936 | E180: 7.439210215 | F180: 51646.41339 | G180: 0 | H180: 566.3803475 | I180: 1 | J180: 1
B181: 356 | C181: 712.1 | D181: 90.82350936 | E181: 7.480008438 | F181: 51929.65339 | G181: 0 | H181: 569.4864987 | I181: 1 | J181: 1
B182: 358 | C182: 716.1 | D182: 90.82350936 | E182: 7.521037127 | F182: 52214.49339 | G182: 0 | H182: 572.6101963 | I182: 1 | J182: 1
B183: 360 | C183: 720.1 | D183: 90.82350936 | E183: 7.562296282 | F183: 52500.93339 | G183: 0 | H183: 575.7514403 | I183: 1 | J183: 1
B184: 362 | C184: 724.1 | D184: 90.82350936 | E184: 7.603785903 | F184: 52788.97339 | G184: 0 | H184: 578.9102307 | I184: 1 | J184: 1
B185: 364 | C185: 728.1 | D185: 90.82350936 | E185: 7.645505989 | F185: 53078.61339 | G185: 0 | H185: 582.0865676 | I185: 1 | J185: 1
B186: 366 | C186: 732.1 | D186: 90.82350936 | E186: 7.687456542 | F186: 53369.85339 | G186: 0 | H186: 585.2804508 | I186: 1 | J186: 1
B187: 368 | C187: 736.1 | D187: 90.82350936 | E187: 7.729637561 | F187: 53662.69339 | G187: 0 | H187: 588.4918804 | I187: 1 | J187: 1
B188: 370 | C188: 740.1 | D188: 90.82350936 | E188: 7.772049045 | F188: 53957.13339 | G188: 0 | H188: 591.7208564 | I188: 1 | J188: 1
B189: 372 | C189: 744.1 | D189: 90.82350936 | E189: 7.814690995 | F189: 54253.17339 | G189: 0 | H189: 594.9673788 | I189: 1 | J189: 1
B190: 374 | C190: 748.1 | D190: 90.82350936 | E190: 7.857563411 | F190: 54550.81339 | G190: 0 | H190: 598.2314476 | I190: 1 | J190: 1
B191: 376 | C191: 752.1 | D191: 90.82350936 | E191: 7.900666293 | F191: 54850.05339 | G191: 0 | H191: 601.5130628 | I191: 1 | J191: 1
B192: 378 | C192: 756.1 | D192: 90.82350936 | E192: 7.943999641 | F192: 55150.89339 | G192: 0 | H192: 604.8122244 | I192: 1 | J192: 1
B193: 380 | C193: 760.1 | D193: 90.82350936 | E193: 7.987563455 | F193: 55453.33339 | G193: 0 | H193: 608.1289324 | I193: 1 | J193: 1
B194: 382 | C194: 764.1 | D194: 90.82350936 | E194: 8.031357735 | F194: 55757.37339 | G194: 0 | H194: 611.4631868 | I194: 1 | J194: 1
B195: 384 | C195: 768.1 | D195: 90.82350936 | E195: 8.07538248 | F195: 56063.01339 | G195: 0 | H195: 614.8149876 | I195: 1 | J195: 1
B196: 386 | C196: 772.1 | D196: 90.82350936 | E196: 8.119637692 | F196: 56370.25339 | G196: 0 | H196: 618.1843347 | I196: 1 | J196: 1
B197: 388 | C197: 776.1 | D197: 90.82350936 | E197: 8.164123369 | F197: 56679.09339 | G197: 0 | H197: 621.5712283 | I197: 1 | J197: 1
B198: 390 | C198: 780.1 | D198: 90.82350936 | E198: 8.208839513 | F198: 56989.53339 | G198: 0 | H198: 624.9756683 | I198: 1 | J198: 1
B199: 392 | C199: 784.1 | D199: 90.82350936 | E199: 8.253786122 | F199: 57301.57339 | G199: 0 | H199: 628.3976547 | I199: 1 | J199: 1
B200: 394 | C200: 788.1 | D200: 90.82350936 | E200: 8.298963197 | F200: 57615.21339 | G200: 0 | H200: 631.8371875 | I200: 1 | J200: 1
B201: 396 | C201: 792.1 | D201: 90.82350936 | E201: 8.344370738 | F201: 57930.45339 | G201: 0 | H201: 635.2942667 | I201: 1 | J201: 1
... 2802 more rows

Sheet Sheet3
B2: i | C2: t | D2: Qdot | E2: mH | F2: dH | G2: eH | H2: z | I2: tH | J2: COHb | K2: FICO
B3: 0 | C3: =B3*Sheet1!$C$11 -> 0 | D3: =VLOOKUP(Sheet3!C3,Sheet2!B3:J3003,2,FALSE) -> 0.1 | E3: =VLOOKUP(Sheet3!C3,Sheet2!B3:J3003,3,FALSE) -> 0 | F3: =VLOOKUP(Sheet3!C3,Sheet2!B3:J3003,4,FALSE) -> 0 | G3: =VLOOKUP(Sheet3!C3,Sheet2!B3:J3003,5,FALSE) -> 0 | H3: =VLOOKUP(Sheet3!C3,Sheet2!B3:J3003,6,FALSE) -> 5 | I3: =VLOOKUP(Sheet3!C3,Sheet2!B3:J3003,7,FALSE) -> 293 | J3: =VLOOKUP(Sheet3!C3,Sheet2!B3:J3003,8,FALSE) -> 0 | K3: =VLOOKUP(Sheet3!C3,Sheet2!B3:J3003,9,FALSE) -> 0
B4: =B3+1 -> 1 | C4: =B4*Sheet1!$C$11 -> 2 | D4: =VLOOKUP(Sheet3!C4,Sheet2!B3:J3003,2,FALSE) -> 4.1 | E4: =VLOOKUP(Sheet3!C4,Sheet2!B3:J3003,3,FALSE) -> 0.4467535907 | F4: =VLOOKUP(Sheet3!C4,Sheet2!B3:J3003,4,FALSE) -> 0.01893599854 | G4: =VLOOKUP(Sheet3!C4,Sheet2!B3:J3003,5,FALSE) -> 131.4623973 | H4: =VLOOKUP(Sheet3!C4,Sheet2!B3:J3003,6,FALSE) -> 4.981064001 | I4: =VLOOKUP(Sheet3!C4,Sheet2!B3:J3003,7,FALSE) -> 293.0891781 | J4: =VLOOKUP(Sheet3!C4,Sheet2!B3:J3003,8,FALSE) -> 0.006418195994 | K4: =VLOOKUP(Sheet3!C4,Sheet2!B3:J3003,9,FALSE) -> 0.02139398665
B5: =B4+1 -> 2 | C5: =B5*Sheet1!$C$11 -> 4 | D5: =VLOOKUP(Sheet3!C5,Sheet2!B3:J3003,2,FALSE) -> 8.1 | E5: =VLOOKUP(Sheet3!C5,Sheet2!B3:J3003,3,FALSE) -> 1.977545648 | F5: =VLOOKUP(Sheet3!C5,Sheet2!B3:J3003,4,FALSE) -> 0.08403629628 | G5: =VLOOKUP(Sheet3!C5,Sheet2!B3:J3003,5,FALSE) -> 583.4185582 | H5: =VLOOKUP(Sheet3!C5,Sheet2!B3:J3003,6,FALSE) -> 4.915963704 | I5: =VLOOKUP(Sheet3!C5,Sheet2!B3:J3003,7,FALSE) -> 293.8461533 | J5: =VLOOKUP(Sheet3!C5,Sheet2!B3:J3003,8,FALSE) -> 0.01283639199 | K5: =VLOOKUP(Sheet3!C5,Sheet2!B3:J3003,9,FALSE) -> 0.04278797329
B6: 3 | C6: =B6*Sheet1!$C$11 -> 6 | D6: =VLOOKUP(Sheet3!C6,Sheet2!B3:J3003,2,FALSE) -> 12.1 | E6: =VLOOKUP(Sheet3!C6,Sheet2!B3:J3003,3,FALSE) -> 3.856692973 | F6: =VLOOKUP(Sheet3!C6,Sheet2!B3:J3003,4,FALSE) -> 0.1641278764 | G6: =VLOOKUP(Sheet3!C6,Sheet2!B3:J3003,5,FALSE) -> 1139.451085 | H6: =VLOOKUP(Sheet3!C6,Sheet2!B3:J3003,6,FALSE) -> 4.835872124 | I6: =VLOOKUP(Sheet3!C6,Sheet2!B3:J3003,7,FALSE) -> 294.2706219 | J6: =VLOOKUP(Sheet3!C6,Sheet2!B3:J3003,8,FALSE) -> 0.01925458798 | K6: =VLOOKUP(Sheet3!C6,Sheet2!B3:J3003,9,FALSE) -> 0.06418195994
B7: 4 | C7: =B7*Sheet1!$C$11 -> 8 | D7: =VLOOKUP(Sheet3!C7,Sheet2!B3:J3003,2,FALSE) -> 16.1 | E7: =VLOOKUP(Sheet3!C7,Sheet2!B3:J3003,3,FALSE) -> 5.946812784 | F7: =VLOOKUP(Sheet3!C7,Sheet2!B3:J3003,4,FALSE) -> 0.2533894344 | G7: =VLOOKUP(Sheet3!C7,Sheet2!B3:J3003,5,FALSE) -> 1759.14581 | H7: =VLOOKUP(Sheet3!C7,Sheet2!B3:J3003,6,FALSE) -> 4.746610566 | I7: =VLOOKUP(Sheet3!C7,Sheet2!B3:J3003,7,FALSE) -> 294.6346766 | J7: =VLOOKUP(Sheet3!C7,Sheet2!B3:J3003,8,FALSE) -> 0.02567278397 | K7: =VLOOKUP(Sheet3!C7,Sheet2!B3:J3003,9,FALSE) -> 0.08557594658
B8: 5 | C8: =B8*Sheet1!$C$11 -> 10 | D8: =VLOOKUP(Sheet3!C8,Sheet2!B3:J3003,2,FALSE) -> 20.1 | E8: =VLOOKUP(Sheet3!C8,Sheet2!B3:J3003,3,FALSE) -> 8.175415587 | F8: =VLOOKUP(Sheet3!C8,Sheet2!B3:J3003,4,FALSE) -> 0.3487493818 | G8: =VLOOKUP(Sheet3!C8,Sheet2!B3:J3003,5,FALSE) -> 2421.178354 | H8: =VLOOKUP(Sheet3!C8,Sheet2!B3:J3003,6,FALSE) -> 4.651250618 | I8: =VLOOKUP(Sheet3!C8,Sheet2!B3:J3003,7,FALSE) -> 294.973656 | J8: =VLOOKUP(Sheet3!C8,Sheet2!B3:J3003,8,FALSE) -> 0.03209097997 | K8: =VLOOKUP(Sheet3!C8,Sheet2!B3:J3003,9,FALSE) -> 0.1069699332
B9: 6 | C9: =B9*Sheet1!$C$11 -> 12 | D9: =VLOOKUP(Sheet3!C9,Sheet2!B3:J3003,2,FALSE) -> 24.1 | E9: =VLOOKUP(Sheet3!C9,Sheet2!B3:J3003,3,FALSE) -> 10.49529974 | F9: =VLOOKUP(Sheet3!C9,Sheet2!B3:J3003,4,FALSE) -> 0.4482076488 | G9: =VLOOKUP(Sheet3!C9,Sheet2!B3:J3003,5,FALSE) -> 3111.663315 | H9: =VLOOKUP(Sheet3!C9,Sheet2!B3:J3003,6,FALSE) -> 4.551792351 | I9: =VLOOKUP(Sheet3!C9,Sheet2!B3:J3003,7,FALSE) -> 295.3004037 | J9: =VLOOKUP(Sheet3!C9,Sheet2!B3:J3003,8,FALSE) -> 0.03850917596 | K9: =VLOOKUP(Sheet3!C9,Sheet2!B3:J3003,9,FALSE) -> 0.1283639199
B10: 7 | C10: =B10*Sheet1!$C$11 -> 14 | D10: =VLOOKUP(Sheet3!C10,Sheet2!B3:J3003,2,FALSE) -> 28.1 | E10: =VLOOKUP(Sheet3!C10,Sheet2!B3:J3003,3,FALSE) -> 12.87265706 | F10: =VLOOKUP(Sheet3!C10,Sheet2!B3:J3003,4,FALSE) -> 0.5503316854 | G10: =VLOOKUP(Sheet3!C10,Sheet2!B3:J3003,5,FALSE) -> 3820.655272 | H10: =VLOOKUP(Sheet3!C10,Sheet2!B3:J3003,6,FALSE) -> 4.449668315 | I10: =VLOOKUP(Sheet3!C10,Sheet2!B3:J3003,7,FALSE) -> 295.6214495 | J10: =VLOOKUP(Sheet3!C10,Sheet2!B3:J3003,8,FALSE) -> 0.04492737195 | K10: =VLOOKUP(Sheet3!C10,Sheet2!B3:J3003,9,FALSE) -> 0.1497579065
B11: 8 | C11: =B11*Sheet1!$C$11 -> 16 | D11: =VLOOKUP(Sheet3!C11,Sheet2!B3:J3003,2,FALSE) -> 32.1 | E11: =VLOOKUP(Sheet3!C11,Sheet2!B3:J3003,3,FALSE) -> 15.28200515 | F11: =VLOOKUP(Sheet3!C11,Sheet2!B3:J3003,4,FALSE) -> 0.6540417292 | G11: =VLOOKUP(Sheet3!C11,Sheet2!B3:J3003,5,FALSE) -> 4540.65802 | H11: =VLOOKUP(Sheet3!C11,Sheet2!B3:J3003,6,FALSE) -> 4.345958271 | I11: =VLOOKUP(Sheet3!C11,Sheet2!B3:J3003,7,FALSE) -> 295.9407292 | J11: =VLOOKUP(Sheet3!C11,Sheet2!B3:J3003,8,FALSE) -> 0.05134556795 | K11: =VLOOKUP(Sheet3!C11,Sheet2!B3:J3003,9,FALSE) -> 0.1711518932
B12: 9 | C12: =B12*Sheet1!$C$11 -> 18 | D12: =VLOOKUP(Sheet3!C12,Sheet2!B3:J3003,2,FALSE) -> 36.1 | E12: =VLOOKUP(Sheet3!C12,Sheet2!B3:J3003,3,FALSE) -> 17.70356743 | F12: =VLOOKUP(Sheet3!C12,Sheet2!B3:J3003,4,FALSE) -> 0.7584997888 | G12: =VLOOKUP(Sheet3!C12,Sheet2!B3:J3003,5,FALSE) -> 5265.853837 | H12: =VLOOKUP(Sheet3!C12,Sheet2!B3:J3003,6,FALSE) -> 4.241500211 | I12: =VLOOKUP(Sheet3!C12,Sheet2!B3:J3003,7,FALSE) -> 296.2608729 | J12: =VLOOKUP(Sheet3!C12,Sheet2!B3:J3003,8,FALSE) -> 0.05776376394 | K12: =VLOOKUP(Sheet3!C12,Sheet2!B3:J3003,9,FALSE) -> 0.1925458798
B13: 10 | C13: =B13*Sheet1!$C$11 -> 20 | D13: =VLOOKUP(Sheet3!C13,Sheet2!B3:J3003,2,FALSE) -> 40.1 | E13: =VLOOKUP(Sheet3!C13,Sheet2!B3:J3003,3,FALSE) -> 20.1217343 | F13: =VLOOKUP(Sheet3!C13,Sheet2!B3:J3003,4,FALSE) -> 0.8630444412 | G13: =VLOOKUP(Sheet3!C13,Sheet2!B3:J3003,5,FALSE) -> 5991.650821 | H13: =VLOOKUP(Sheet3!C13,Sheet2!B3:J3003,6,FALSE) -> 4.136955559 | I13: =VLOOKUP(Sheet3!C13,Sheet2!B3:J3003,7,FALSE) -> 296.5837643 | J13: =VLOOKUP(Sheet3!C13,Sheet2!B3:J3003,8,FALSE) -> 0.06418195994 | K13: =VLOOKUP(Sheet3!C13,Sheet2!B3:J3003,9,FALSE) -> 0.2139398665
B14: 11 | C14: =B14*Sheet1!$C$11 -> 22 | D14: =VLOOKUP(Sheet3!C14,Sheet2!B3:J3003,2,FALSE) -> 44.1 | E14: =VLOOKUP(Sheet3!C14,Sheet2!B3:J3003,3,FALSE) -> 22.52407313 | F14: =VLOOKUP(Sheet3!C14,Sheet2!B3:J3003,4,FALSE) -> 0.96714888 | G14: =VLOOKUP(Sheet3!C14,Sheet2!B3:J3003,5,FALSE) -> 6714.39164 | H14: =VLOOKUP(Sheet3!C14,Sheet2!B3:J3003,6,FALSE) -> 4.03285112 | I14: =VLOOKUP(Sheet3!C14,Sheet2!B3:J3003,7,FALSE) -> 296.9108224 | J14: =VLOOKUP(Sheet3!C14,Sheet2!B3:J3003,8,FALSE) -> 0.07060015593 | K14: =VLOOKUP(Sheet3!C14,Sheet2!B3:J3003,9,FALSE) -> 0.2353338531
B15: 12 | C15: =B15*Sheet1!$C$11 -> 24 | D15: =VLOOKUP(Sheet3!C15,Sheet2!B3:J3003,2,FALSE) -> 48.1 | E15: =VLOOKUP(Sheet3!C15,Sheet2!B3:J3003,3,FALSE) -> 24.90064648 | F15: =VLOOKUP(Sheet3!C15,Sheet2!B3:J3003,4,FALSE) -> 1.070392027 | G15: =VLOOKUP(Sheet3!C15,Sheet2!B3:J3003,5,FALSE) -> 7431.152976 | H15: =VLOOKUP(Sheet3!C15,Sheet2!B3:J3003,6,FALSE) -> 3.929607973 | I15: =VLOOKUP(Sheet3!C15,Sheet2!B3:J3003,7,FALSE) -> 297.2431577 | J15: =VLOOKUP(Sheet3!C15,Sheet2!B3:J3003,8,FALSE) -> 0.07701835192 | K15: =VLOOKUP(Sheet3!C15,Sheet2!B3:J3003,9,FALSE) -> 0.2567278397
B16: 13 | C16: =B16*Sheet1!$C$11 -> 26 | D16: =VLOOKUP(Sheet3!C16,Sheet2!B3:J3003,2,FALSE) -> 52.1 | E16: =VLOOKUP(Sheet3!C16,Sheet2!B3:J3003,3,FALSE) -> 27.24351786 | F16: =VLOOKUP(Sheet3!C16,Sheet2!B3:J3003,4,FALSE) -> 1.17243759 | G16: =VLOOKUP(Sheet3!C16,Sheet2!B3:J3003,5,FALSE) -> 8139.600136 | H16: =VLOOKUP(Sheet3!C16,Sheet2!B3:J3003,6,FALSE) -> 3.82756241 | I16: =VLOOKUP(Sheet3!C16,Sheet2!B3:J3003,7,FALSE) -> 297.5816666 | J16: =VLOOKUP(Sheet3!C16,Sheet2!B3:J3003,8,FALSE) -> 0.08343654792 | K16: =VLOOKUP(Sheet3!C16,Sheet2!B3:J3003,9,FALSE) -> 0.2781218264
B17: 14 | C17: =B17*Sheet1!$C$11 -> 28 | D17: =VLOOKUP(Sheet3!C17,Sheet2!B3:J3003,2,FALSE) -> 56.1 | E17: =VLOOKUP(Sheet3!C17,Sheet2!B3:J3003,3,FALSE) -> 29.54637901 | F17: =VLOOKUP(Sheet3!C17,Sheet2!B3:J3003,4,FALSE) -> 1.273018271 | G17: =VLOOKUP(Sheet3!C17,Sheet2!B3:J3003,5,FALSE) -> 8837.877407 | H17: =VLOOKUP(Sheet3!C17,Sheet2!B3:J3003,6,FALSE) -> 3.726981729 | I17: =VLOOKUP(Sheet3!C17,Sheet2!B3:J3003,7,FALSE) -> 297.9270907 | J17: =VLOOKUP(Sheet3!C17,Sheet2!B3:J3003,8,FALSE) -> 0.08985474391 | K17: =VLOOKUP(Sheet3!C17,Sheet2!B3:J3003,9,FALSE) -> 0.299515813
B18: 15 | C18: =B18*Sheet1!$C$11 -> 30 | D18: =VLOOKUP(Sheet3!C18,Sheet2!B3:J3003,2,FALSE) -> 60.1 | E18: =VLOOKUP(Sheet3!C18,Sheet2!B3:J3003,3,FALSE) -> 31.8042603 | F18: =VLOOKUP(Sheet3!C18,Sheet2!B3:J3003,4,FALSE) -> 1.371923491 | G18: =VLOOKUP(Sheet3!C18,Sheet2!B3:J3003,5,FALSE) -> 9524.522861 | H18: =VLOOKUP(Sheet3!C18,Sheet2!B3:J3003,6,FALSE) -> 3.628076509 | I18: =VLOOKUP(Sheet3!C18,Sheet2!B3:J3003,7,FALSE) -> 298.2800564 | J18: =VLOOKUP(Sheet3!C18,Sheet2!B3:J3003,8,FALSE) -> 0.0962729399 | K18: =VLOOKUP(Sheet3!C18,Sheet2!B3:J3003,9,FALSE) -> 0.3209097997
B19: 16 | C19: =B19*Sheet1!$C$11 -> 32 | D19: =VLOOKUP(Sheet3!C19,Sheet2!B3:J3003,2,FALSE) -> 64.1 | E19: =VLOOKUP(Sheet3!C19,Sheet2!B3:J3003,3,FALSE) -> 34.01330039 | F19: =VLOOKUP(Sheet3!C19,Sheet2!B3:J3003,4,FALSE) -> 1.468989634 | G19: =VLOOKUP(Sheet3!C19,Sheet2!B3:J3003,5,FALSE) -> 10198.4006 | H19: =VLOOKUP(Sheet3!C19,Sheet2!B3:J3003,6,FALSE) -> 3.531010366 | I19: =VLOOKUP(Sheet3!C19,Sheet2!B3:J3003,7,FALSE) -> 298.6411024 | J19: =VLOOKUP(Sheet3!C19,Sheet2!B3:J3003,8,FALSE) -> 0.1026911359 | K19: =VLOOKUP(Sheet3!C19,Sheet2!B3:J3003,9,FALSE) -> 0.3423037863
B20: 17 | C20: =B20*Sheet1!$C$11 -> 34 | D20: =VLOOKUP(Sheet3!C20,Sheet2!B3:J3003,2,FALSE) -> 68.1 | E20: =VLOOKUP(Sheet3!C20,Sheet2!B3:J3003,3,FALSE) -> 36.17055981 | F20: =VLOOKUP(Sheet3!C20,Sheet2!B3:J3003,4,FALSE) -> 1.564092148 | G20: =VLOOKUP(Sheet3!C20,Sheet2!B3:J3003,5,FALSE) -> 10858.64592 | H20: =VLOOKUP(Sheet3!C20,Sheet2!B3:J3003,6,FALSE) -> 3.435907852 | I20: =VLOOKUP(Sheet3!C20,Sheet2!B3:J3003,7,FALSE) -> 299.0106993 | J20: =VLOOKUP(Sheet3!C20,Sheet2!B3:J3003,8,FALSE) -> 0.1091093319 | K20: =VLOOKUP(Sheet3!C20,Sheet2!B3:J3003,9,FALSE) -> 0.363697773
B21: 18 | C21: =B21*Sheet1!$C$11 -> 36 | D21: =VLOOKUP(Sheet3!C21,Sheet2!B3:J3003,2,FALSE) -> 72.1 | E21: =VLOOKUP(Sheet3!C21,Sheet2!B3:J3003,3,FALSE) -> 38.27386808 | F21: =VLOOKUP(Sheet3!C21,Sheet2!B3:J3003,4,FALSE) -> 1.657139061 | G21: =VLOOKUP(Sheet3!C21,Sheet2!B3:J3003,5,FALSE) -> 11504.62032 | H21: =VLOOKUP(Sheet3!C21,Sheet2!B3:J3003,6,FALSE) -> 3.342860939 | I21: =VLOOKUP(Sheet3!C21,Sheet2!B3:J3003,7,FALSE) -> 299.3892636 | J21: =VLOOKUP(Sheet3!C21,Sheet2!B3:J3003,8,FALSE) -> 0.1155275279 | K21: =VLOOKUP(Sheet3!C21,Sheet2!B3:J3003,9,FALSE) -> 0.3850917596
B22: 19 | C22: =B22*Sheet1!$C$11 -> 38 | D22: =VLOOKUP(Sheet3!C22,Sheet2!B3:J3003,2,FALSE) -> 76.1 | E22: =VLOOKUP(Sheet3!C22,Sheet2!B3:J3003,3,FALSE) -> 40.32169689 | F22: =VLOOKUP(Sheet3!C22,Sheet2!B3:J3003,4,FALSE) -> 1.748065616 | G22: =VLOOKUP(Sheet3!C22,Sheet2!B3:J3003,5,FALSE) -> 12135.87422 | H22: =VLOOKUP(Sheet3!C22,Sheet2!B3:J3003,6,FALSE) -> 3.251934384 | I22: =VLOOKUP(Sheet3!C22,Sheet2!B3:J3003,7,FALSE) -> 299.7771685 | J22: =VLOOKUP(Sheet3!C22,Sheet2!B3:J3003,8,FALSE) -> 0.1219457239 | K22: =VLOOKUP(Sheet3!C22,Sheet2!B3:J3003,9,FALSE) -> 0.4064857463
B23: 20 | C23: =B23*Sheet1!$C$11 -> 40 | D23: =VLOOKUP(Sheet3!C23,Sheet2!B3:J3003,2,FALSE) -> 80.1 | E23: =VLOOKUP(Sheet3!C23,Sheet2!B3:J3003,3,FALSE) -> 42.31305433 | F23: =VLOOKUP(Sheet3!C23,Sheet2!B3:J3003,4,FALSE) -> 1.836829782 | G23: =VLOOKUP(Sheet3!C23,Sheet2!B3:J3003,5,FALSE) -> 12752.11582 | H23: =VLOOKUP(Sheet3!C23,Sheet2!B3:J3003,6,FALSE) -> 3.163170218 | I23: =VLOOKUP(Sheet3!C23,Sheet2!B3:J3003,7,FALSE) -> 300.1747517 | J23: =VLOOKUP(Sheet3!C23,Sheet2!B3:J3003,8,FALSE) -> 0.1283639199 | K23: =VLOOKUP(Sheet3!C23,Sheet2!B3:J3003,9,FALSE) -> 0.4278797329
B24: 21 | C24: =B24*Sheet1!$C$11 -> 42 | D24: =VLOOKUP(Sheet3!C24,Sheet2!B3:J3003,2,FALSE) -> 84.1 | E24: =VLOOKUP(Sheet3!C24,Sheet2!B3:J3003,3,FALSE) -> 44.24739585 | F24: =VLOOKUP(Sheet3!C24,Sheet2!B3:J3003,4,FALSE) -> 1.923408485 | G24: =VLOOKUP(Sheet3!C24,Sheet2!B3:J3003,5,FALSE) -> 13353.18493 | H24: =VLOOKUP(Sheet3!C24,Sheet2!B3:J3003,6,FALSE) -> 3.076591515 | I24: =VLOOKUP(Sheet3!C24,Sheet2!B3:J3003,7,FALSE) -> 300.5823221 | J24: =VLOOKUP(Sheet3!C24,Sheet2!B3:J3003,8,FALSE) -> 0.1347821159 | K24: =VLOOKUP(Sheet3!C24,Sheet2!B3:J3003,9,FALSE) -> 0.4492737195
B25: 22 | C25: =B25*Sheet1!$C$11 -> 44 | D25: =VLOOKUP(Sheet3!C25,Sheet2!B3:J3003,2,FALSE) -> 88.1 | E25: =VLOOKUP(Sheet3!C25,Sheet2!B3:J3003,3,FALSE) -> 46.12454929 | F25: =VLOOKUP(Sheet3!C25,Sheet2!B3:J3003,4,FALSE) -> 2.00779443 | G25: =VLOOKUP(Sheet3!C25,Sheet2!B3:J3003,5,FALSE) -> 13939.03091 | H25: =VLOOKUP(Sheet3!C25,Sheet2!B3:J3003,6,FALSE) -> 2.99220557 | I25: =VLOOKUP(Sheet3!C25,Sheet2!B3:J3003,7,FALSE) -> 301.0001645 | J25: =VLOOKUP(Sheet3!C25,Sheet2!B3:J3003,8,FALSE) -> 0.1412003119 | K25: =VLOOKUP(Sheet3!C25,Sheet2!B3:J3003,9,FALSE) -> 0.4706677062
B26: 23 | C26: =B26*Sheet1!$C$11 -> 46 | D26: =VLOOKUP(Sheet3!C26,Sheet2!B3:J3003,2,FALSE) -> 92.1 | E26: =VLOOKUP(Sheet3!C26,Sheet2!B3:J3003,3,FALSE) -> 47.94465129 | F26: =VLOOKUP(Sheet3!C26,Sheet2!B3:J3003,4,FALSE) -> 2.089993407 | G26: =VLOOKUP(Sheet3!C26,Sheet2!B3:J3003,5,FALSE) -> 14509.69396 | H26: =VLOOKUP(Sheet3!C26,Sheet2!B3:J3003,6,FALSE) -> 2.910006593 | I26: =VLOOKUP(Sheet3!C26,Sheet2!B3:J3003,7,FALSE) -> 301.4285436 | J26: =VLOOKUP(Sheet3!C26,Sheet2!B3:J3003,8,FALSE) -> 0.1476185079 | K26: =VLOOKUP(Sheet3!C26,Sheet2!B3:J3003,9,FALSE) -> 0.4920616928
B27: 24 | C27: =B27*Sheet1!$C$11 -> 48 | D27: =VLOOKUP(Sheet3!C27,Sheet2!B3:J3003,2,FALSE) -> 96.1 | E27: =VLOOKUP(Sheet3!C27,Sheet2!B3:J3003,3,FALSE) -> 49.7080934 | F27: =VLOOKUP(Sheet3!C27,Sheet2!B3:J3003,4,FALSE) -> 2.170022008 | G27: =VLOOKUP(Sheet3!C27,Sheet2!B3:J3003,5,FALSE) -> 15065.28925 | H27: =VLOOKUP(Sheet3!C27,Sheet2!B3:J3003,6,FALSE) -> 2.829977992 | I27: =VLOOKUP(Sheet3!C27,Sheet2!B3:J3003,7,FALSE) -> 301.8677071 | J27: =VLOOKUP(Sheet3!C27,Sheet2!B3:J3003,8,FALSE) -> 0.1540367038 | K27: =VLOOKUP(Sheet3!C27,Sheet2!B3:J3003,9,FALSE) -> 0.5134556795
B28: 25 | C28: =B28*Sheet1!$C$11 -> 50 | D28: =VLOOKUP(Sheet3!C28,Sheet2!B3:J3003,2,FALSE) -> 100.1 | E28: =VLOOKUP(Sheet3!C28,Sheet2!B3:J3003,3,FALSE) -> 51.41547634 | F28: =VLOOKUP(Sheet3!C28,Sheet2!B3:J3003,4,FALSE) -> 2.247905685 | G28: =VLOOKUP(Sheet3!C28,Sheet2!B3:J3003,5,FALSE) -> 15605.99351 | H28: =VLOOKUP(Sheet3!C28,Sheet2!B3:J3003,6,FALSE) -> 2.752094315 | I28: =VLOOKUP(Sheet3!C28,Sheet2!B3:J3003,7,FALSE) -> 302.3178883 | J28: =VLOOKUP(Sheet3!C28,Sheet2!B3:J3003,8,FALSE) -> 0.1604548998 | K28: =VLOOKUP(Sheet3!C28,Sheet2!B3:J3003,9,FALSE) -> 0.5348496661
B29: 26 | C29: =B29*Sheet1!$C$11 -> 52 | D29: =VLOOKUP(Sheet3!C29,Sheet2!B3:J3003,2,FALSE) -> 104.1 | E29: =VLOOKUP(Sheet3!C29,Sheet2!B3:J3003,3,FALSE) -> 53.067571 | F29: =VLOOKUP(Sheet3!C29,Sheet2!B3:J3003,4,FALSE) -> 2.323677105 | G29: =VLOOKUP(Sheet3!C29,Sheet2!B3:J3003,5,FALSE) -> 16132.0335 | H29: =VLOOKUP(Sheet3!C29,Sheet2!B3:J3003,6,FALSE) -> 2.676322895 | I29: =VLOOKUP(Sheet3!C29,Sheet2!B3:J3003,7,FALSE) -> 302.7793084 | J29: =VLOOKUP(Sheet3!C29,Sheet2!B3:J3003,8,FALSE) -> 0.1668730958 | K29: =VLOOKUP(Sheet3!C29,Sheet2!B3:J3003,9,FALSE) -> 0.5562436528
B30: 27 | C30: =B30*Sheet1!$C$11 -> 54 | D30: =VLOOKUP(Sheet3!C30,Sheet2!B3:J3003,2,FALSE) -> 108.1 | E30: =VLOOKUP(Sheet3!C30,Sheet2!B3:J3003,3,FALSE) -> 54.66528535 | F30: =VLOOKUP(Sheet3!C30,Sheet2!B3:J3003,4,FALSE) -> 2.39737474 | G30: =VLOOKUP(Sheet3!C30,Sheet2!B3:J3003,5,FALSE) -> 16643.67632 | H30: =VLOOKUP(Sheet3!C30,Sheet2!B3:J3003,6,FALSE) -> 2.60262526 | I30: =VLOOKUP(Sheet3!C30,Sheet2!B3:J3003,7,FALSE) -> 303.2521782 | J30: =VLOOKUP(Sheet3!C30,Sheet2!B3:J3003,8,FALSE) -> 0.1732912918 | K30: =VLOOKUP(Sheet3!C30,Sheet2!B3:J3003,9,FALSE) -> 0.5776376394
B31: 28 | C31: =B31*Sheet1!$C$11 -> 56 | D31: =VLOOKUP(Sheet3!C31,Sheet2!B3:J3003,2,FALSE) -> 112.1 | E31: =VLOOKUP(Sheet3!C31,Sheet2!B3:J3003,3,FALSE) -> 56.20963634 | F31: =VLOOKUP(Sheet3!C31,Sheet2!B3:J3003,4,FALSE) -> 2.469041682 | G31: =VLOOKUP(Sheet3!C31,Sheet2!B3:J3003,5,FALSE) -> 17141.22114 | H31: =VLOOKUP(Sheet3!C31,Sheet2!B3:J3003,6,FALSE) -> 2.530958318 | I31: =VLOOKUP(Sheet3!C31,Sheet2!B3:J3003,7,FALSE) -> 303.7366995 | J31: =VLOOKUP(Sheet3!C31,Sheet2!B3:J3003,8,FALSE) -> 0.1797094878 | K31: =VLOOKUP(Sheet3!C31,Sheet2!B3:J3003,9,FALSE) -> 0.5990316261
B32: 29 | C32: =B32*Sheet1!$C$11 -> 58 | D32: =VLOOKUP(Sheet3!C32,Sheet2!B3:J3003,2,FALSE) -> 116.1 | E32: =VLOOKUP(Sheet3!C32,Sheet2!B3:J3003,3,FALSE) -> 57.70172594 | F32: =VLOOKUP(Sheet3!C32,Sheet2!B3:J3003,4,FALSE) -> 2.538724624 | G32: =VLOOKUP(Sheet3!C32,Sheet2!B3:J3003,5,FALSE) -> 17624.99212 | H32: =VLOOKUP(Sheet3!C32,Sheet2!B3:J3003,6,FALSE) -> 2.461275376 | I32: =VLOOKUP(Sheet3!C32,Sheet2!B3:J3003,7,FALSE) -> 304.2330666 | J32: =VLOOKUP(Sheet3!C32,Sheet2!B3:J3003,8,FALSE) -> 0.1861276838 | K32: =VLOOKUP(Sheet3!C32,Sheet2!B3:J3003,9,FALSE) -> 0.6204256127
B33: 30 | C33: =B33*Sheet1!$C$11 -> 60 | D33: =VLOOKUP(Sheet3!C33,Sheet2!B3:J3003,2,FALSE) -> 120.1 | E33: =VLOOKUP(Sheet3!C33,Sheet2!B3:J3003,3,FALSE) -> 59.1427209 | F33: =VLOOKUP(Sheet3!C33,Sheet2!B3:J3003,4,FALSE) -> 2.606473005 | G33: =VLOOKUP(Sheet3!C33,Sheet2!B3:J3003,5,FALSE) -> 18095.33249 | H33: =VLOOKUP(Sheet3!C33,Sheet2!B3:J3003,6,FALSE) -> 2.393526995 | I33: =VLOOKUP(Sheet3!C33,Sheet2!B3:J3003,7,FALSE) -> 304.7414671 | J33: =VLOOKUP(Sheet3!C33,Sheet2!B3:J3003,8,FALSE) -> 0.1925458798 | K33: =VLOOKUP(Sheet3!C33,Sheet2!B3:J3003,9,FALSE) -> 0.6418195994

Sheet Sheet4
